[Event "*** Titled Tuesday 3|2 Blitz"]
[Site "Chess.com"]
[Date "2016.05.03"]
[Round "4"]
[White "oskariot"]
[Black "Elshan1985"]
[Result "0-1"]
[WhiteElo "2416"]
[BlackElo "2565"]
[TimeControl "180+2"]
[EndTime "17:52:46 PDT"]
[Termination "Elshan1985 won on time"]

1. e4 {[%clk 0:03:01.9]} 1... e5 {[%clk 0:03:01.1]} 2. Nf3 {[%clk 0:03:02.4]}
2... Nc6 {[%clk 0:03:02.5]} 3. Bb5 {[%clk 0:02:59]} 3... a6 {[%clk 0:03:03.1]}
4. Ba4 {[%clk 0:03:00]} 4... Nge7 {[%clk 0:03:04.6]} 5. O-O {[%clk 0:03:00.2]}
5... g6 {[%clk 0:03:06.2]} 6. c3 {[%clk 0:03:01.8]} 6... Bg7 {[%clk 0:03:07.3]}
7. d4 {[%clk 0:03:03.5]} 7... exd4 {[%clk 0:03:08.7]} 8. cxd4 {[%clk 0:03:05.4]}
8... b5 {[%clk 0:03:10.4]} 9. Bb3 {[%clk 0:03:06.6]} 9... O-O {[%clk 0:03:11.3]}
10. d5 {[%clk 0:03:08]} 10... Na5 {[%clk 0:03:12]} 11. Bd2 {[%clk 0:03:09.7]}
11... Nxb3 {[%clk 0:03:08.9]} 12. Qxb3 {[%clk 0:03:10.4]} 12... d6 {[%clk
0:02:59.7]} 13. Bc3 {[%clk 0:03:09]} 13... f6 {[%clk 0:03:00.5]} 14. Nbd2 {[%clk
0:02:44.7]} 14... Bd7 {[%clk 0:03:01.3]} 15. Rac1 {[%clk 0:02:44.8]} 15... Be8
{[%clk 0:02:58.8]} 16. Ba5 {[%clk 0:02:45]} 16... Rc8 {[%clk 0:02:46.6]} 17. Nd4
{[%clk 0:02:45.8]} 17... Bf7 {[%clk 0:02:46.8]} 18. N2f3 {[%clk 0:02:38.1]}
18... f5 {[%clk 0:02:43.3]} 19. Ne6 {[%clk 0:02:01.9]} 19... Bxe6 {[%clk
0:02:43.2]} 20. dxe6 {[%clk 0:02:03.8]} 20... fxe4 {[%clk 0:02:11.2]} 21. Ng5
{[%clk 0:02:04]} 21... d5 {[%clk 0:02:12]} 22. Nf7 {[%clk 0:01:47.6]} 22... Qe8
{[%clk 0:02:13]} 23. Bxc7 {[%clk 0:01:43.2]} 23... Rxf7 {[%clk 0:01:50.1]} 24.
exf7+ {[%clk 0:01:42.7]} 24... Qxf7 {[%clk 0:01:51.7]} 25. Bd6 {[%clk
0:01:36.1]} 25... Rd8 {[%clk 0:01:52.8]} 26. Bxe7 {[%clk 0:01:18.8]} 26... Qxe7
{[%clk 0:01:53.9]} 27. Rfd1 {[%clk 0:01:10.5]} 27... Qf7 {[%clk 0:01:53.3]} 28.
Rc5 {[%clk 0:00:58.5]} 28... d4 {[%clk 0:01:54.1]} 29. Qxf7+ {[%clk 0:00:58.9]}
29... Kxf7 {[%clk 0:01:55.7]} 30. Rc7+ {[%clk 0:00:51.8]} 30... Kg8 {[%clk
0:01:56.1]} 31. Re7 {[%clk 0:00:48.7]} 31... d3 {[%clk 0:01:57.2]} 32. b3 {[%clk
0:00:26]} 32... Rd4 {[%clk 0:01:53.8]} 33. f3 {[%clk 0:00:27.5]} 33... exf3
{[%clk 0:01:51.8]} 34. gxf3 {[%clk 0:00:28.9]} 34... d2 {[%clk 0:01:49.5]} 35.
Kf2 {[%clk 0:00:29.9]} 35... Bh6 {[%clk 0:01:49.8]} 36. Ke2 {[%clk 0:00:30.1]}
36... Rd6 {[%clk 0:01:43]} 37. Rf1 {[%clk 0:00:23.9]} 37... Bg5 {[%clk
0:01:40.6]} 38. Rc7 {[%clk 0:00:15.7]} 38... Bf4 {[%clk 0:01:40.1]} 39. Re7
{[%clk 0:00:13.7]} 39... Bg5 {[%clk 0:01:28.3]} 40. Re4 {[%clk 0:00:12.2]} 40...
Bf6 {[%clk 0:01:21.9]} 41. Re3 {[%clk 0:00:10.5]} 41... b4 {[%clk 0:01:17]} 42.
Rd3 {[%clk 0:00:10]} 42... Rxd3 {[%clk 0:01:17.3]} 43. Kxd3 {[%clk 0:00:11.2]}
43... Bc3 {[%clk 0:01:19.2]} 44. Ke2 {[%clk 0:00:09.6]} 44... Kf7 {[%clk
0:01:20.4]} 45. f4 {[%clk 0:00:11.1]} 45... Kf6 {[%clk 0:01:21.7]} 46. Rf3
{[%clk 0:00:07.3]} 46... Kf5 {[%clk 0:01:23.2]} 47. h3 {[%clk 0:00:08.1]} 47...
Ke4 {[%clk 0:01:24.3]} 48. h4 {[%clk 0:00:05.8]} 48... a5 {[%clk 0:01:25.7]} 49.
h5 {[%clk 0:00:07]} 49... gxh5 {[%clk 0:01:24.1]} 50. Rf1 {[%clk 0:00:07]} 50...
Kf5 {[%clk 0:01:24.5]} 51. Kf3 {[%clk 0:00:08.4]} 51... h4 {[%clk 0:01:17.9]}
52. Rh1 {[%clk 0:00:09.4]} 52... h5 {[%clk 0:01:19.3]} 53. Rf1 {[%clk
0:00:07.7]} 53... h3 {[%clk 0:01:17.2]} 54. Rh1 {[%clk 0:00:04.3]} 54... h4
{[%clk 0:01:18.7]} 55. Ke3 {[%clk 0:00:03.9]} 55... Kg4 {[%clk 0:01:19.4]} 56.
Rg1+ {[%clk 0:00:05.3]} 56... Kf5 {[%clk 0:01:20.7]} 57. Rh1 {[%clk 0:00:06.5]}
57... h2 {[%clk 0:01:20.2]} 58. Ke2 {[%clk 0:00:05.7]} 58... Kxf4 {[%clk
0:01:21.1]} 59. Rxh2 {[%clk 0:00:07.3]} 59... Kg3 {[%clk 0:01:22.4]} 60. Rh1
{[%clk 0:00:08.6]} 60... h3 {[%clk 0:01:23.8]} 61. Rg1+ {[%clk 0:00:10.1]} 61...
Kf4 {[%clk 0:01:21.7]} 62. Rh1 {[%clk 0:00:11.6]} 62... Kg4 {[%clk 0:01:22.9]}
63. Rg1+ {[%clk 0:00:12.9]} 63... Kh4 {[%clk 0:01:24.2]} 64. Rg6 {[%clk
0:00:05.1]} 64... Kh5 {[%clk 0:01:15.9]} 65. Rg3 {[%clk 0:00:03.2]} 65... Kh4
{[%clk 0:01:12.8]} 66. Rg6 {[%clk 0:00:04.5]} 66... Be5 {[%clk 0:00:55.7]} 67.
Rh6+ {[%clk 0:00:04.6]} 67... Kg3 {[%clk 0:00:56.7]} 68. Rg6+ {[%clk 0:00:03.6]}
68... Kh4 {[%clk 0:00:52.8]} 69. Rh6+ {[%clk 0:00:03]} 69... Kg4 {[%clk
0:00:54.2]} 70. Kxd2 {[%clk 0:00:02.4]} 70... Bf4+ {[%clk 0:00:55]} 0-1

[Event "*** Titled Tuesday 3|2 Blitz"]
[Site "Chess.com"]
[Date "2016.05.03"]
[Round "4"]
[White "JusticeBot"]
[Black "Tirantes"]
[Result "1/2-1/2"]
[WhiteElo "2500"]
[BlackElo "2222"]
[TimeControl "180+2"]
[EndTime "17:53:52 PDT"]
[Termination "Game drawn by repetition"]

1. e4 {[%clk 0:03:01.9]} 1... c6 {[%clk 0:02:59.6]} 2. d4 {[%clk 0:03:02.8]}
2... d5 {[%clk 0:03:00.1]} 3. Nc3 {[%clk 0:03:04.7]} 3... dxe4 {[%clk
0:03:00.4]} 4. Nxe4 {[%clk 0:03:06.6]} 4... Nd7 {[%clk 0:03:01.3]} 5. Bd3 {[%clk
0:03:07.1]} 5... Ngf6 {[%clk 0:02:59.5]} 6. Ng5 {[%clk 0:03:07.6]} 6... e6
{[%clk 0:02:59.3]} 7. N1f3 {[%clk 0:03:07.9]} 7... Bd6 {[%clk 0:02:59.3]} 8. Qe2
{[%clk 0:03:08.8]} 8... h6 {[%clk 0:02:57.8]} 9. Ne4 {[%clk 0:03:09.7]} 9...
Nxe4 {[%clk 0:02:58.7]} 10. Qxe4 {[%clk 0:03:11.6]} 10... Qc7 {[%clk 0:02:59.5]}
11. Bd2 {[%clk 0:03:09.3]} 11... b6 {[%clk 0:02:56.6]} 12. O-O-O {[%clk
0:03:08.9]} 12... Bb7 {[%clk 0:02:51.9]} 13. Rhe1 {[%clk 0:03:04.7]} 13... Nf6
{[%clk 0:02:48.6]} 14. Qe2 {[%clk 0:03:03.5]} 14... O-O-O {[%clk 0:02:48.8]} 15.
Ne5 {[%clk 0:03:03.5]} 15... c5 {[%clk 0:02:42.7]} 16. dxc5 {[%clk 0:02:55.1]}
16... Bxc5 {[%clk 0:02:35.7]} 17. Bc4 {[%clk 0:02:55.1]} 17... Nd5 {[%clk
0:02:23.9]} 18. Kb1 {[%clk 0:02:52.2]} 18... Bd6 {[%clk 0:02:08]} 19. f4 {[%clk
0:02:32.6]} 19... Kb8 {[%clk 0:02:00.4]} 20. Bb3 {[%clk 0:02:16.1]} 20... Rhe8
{[%clk 0:01:54.9]} 21. g4 {[%clk 0:02:05.5]} 21... f6 {[%clk 0:01:51.1]} 22. Ng6
{[%clk 0:02:00.4]} 22... Nxf4 {[%clk 0:01:43.9]} 23. Bxf4 {[%clk 0:02:00.1]}
23... Bxf4 {[%clk 0:01:43.7]} 24. Rxd8+ {[%clk 0:02:00.6]} 24... Rxd8 {[%clk
0:01:43.8]} 25. Nxf4 {[%clk 0:01:42.2]} 25... Qxf4 {[%clk 0:01:43.4]} 26. Qxe6
{[%clk 0:01:43.9]} 26... Qxh2 {[%clk 0:01:30.8]} 27. a3 {[%clk 0:01:30.2]} 27...
Qd6 {[%clk 0:01:25.4]} 28. Qf7 {[%clk 0:01:31.1]} 28... Rd7 {[%clk 0:01:22.3]}
29. Qg8+ {[%clk 0:01:08.2]} 29... Kc7 {[%clk 0:01:11.2]} 30. Re3 {[%clk
0:00:56.4]} 30... b5 {[%clk 0:01:03]} 31. Rd3 {[%clk 0:00:22.7]} 31... Qe7
{[%clk 0:01:03]} 32. Rc3+ {[%clk 0:00:24.1]} 32... Kb6 {[%clk 0:01:03.4]} 33.
Qb8 {[%clk 0:00:19.7]} 33... Qd6 {[%clk 0:00:59.5]} 34. Qe8 {[%clk 0:00:14.1]}
34... Re7 {[%clk 0:00:52.7]} 35. Qg8 {[%clk 0:00:07.6]} 35... a5 {[%clk
0:00:52.9]} 36. Rd3 {[%clk 0:00:03.8]} 36... Qc7 {[%clk 0:00:41.1]} 37. Bd5
{[%clk 0:00:02.2]} 37... Bxd5 {[%clk 0:00:38]} 38. Qxd5 {[%clk 0:00:04.1]} 38...
Re1+ {[%clk 0:00:37.8]} 39. Ka2 {[%clk 0:00:05.6]} 39... Qc4+ {[%clk 0:00:38.3]}
40. Qxc4 {[%clk 0:00:06.4]} 40... bxc4 {[%clk 0:00:39.3]} 41. Rd7 {[%clk
0:00:08]} 41... Re2 {[%clk 0:00:31.2]} 42. Rxg7 {[%clk 0:00:08.1]} 42... Rxc2
{[%clk 0:00:30.3]} 43. Kb1 {[%clk 0:00:09.4]} 43... Rg2 {[%clk 0:00:30.3]} 44.
Rg6 {[%clk 0:00:10.6]} 44... Kb5 {[%clk 0:00:31.2]} 45. Rxh6 {[%clk 0:00:09.3]}
45... Rxg4 {[%clk 0:00:27.6]} 46. Rxf6 {[%clk 0:00:10.7]} 46... Rg2 {[%clk
0:00:27.1]} 47. Rf8 {[%clk 0:00:09.7]} 47... Kc5 {[%clk 0:00:24.9]} 48. Rc8+
{[%clk 0:00:09.5]} 48... Kb5 {[%clk 0:00:24.9]} 49. Ka2 {[%clk 0:00:10.5]} 49...
Rc2 {[%clk 0:00:22.8]} 50. Ka1 {[%clk 0:00:06.2]} 50... Ka4 {[%clk 0:00:21]} 51.
Kb1 {[%clk 0:00:06.1]} 51... Rh2 {[%clk 0:00:16.6]} 52. Rxc4+ {[%clk 0:00:07.7]}
52... Kb5 {[%clk 0:00:15.2]} 53. Re4 {[%clk 0:00:09.2]} 53... Rg2 {[%clk
0:00:15.7]} 54. Re5+ {[%clk 0:00:07.8]} 54... Kb6 {[%clk 0:00:14.2]} 55. Ka2
{[%clk 0:00:08.3]} 55... a4 {[%clk 0:00:14.4]} 56. Kb1 {[%clk 0:00:04.9]} 56...
Rh2 {[%clk 0:00:14.3]} 57. Kc1 {[%clk 0:00:05.7]} 57... Rg2 {[%clk 0:00:15.3]}
58. Rd5 {[%clk 0:00:07]} 58... Rh2 {[%clk 0:00:16.2]} 59. Rd2 {[%clk 0:00:08.3]}
59... Rh3 {[%clk 0:00:16.3]} 60. Kc2 {[%clk 0:00:09.2]} 60... Kb5 {[%clk
0:00:17]} 61. Rd3 {[%clk 0:00:09.9]} 61... Rh2+ {[%clk 0:00:17.5]} 62. Kc3
{[%clk 0:00:11.3]} 62... Rh4 {[%clk 0:00:17]} 63. Rd5+ {[%clk 0:00:11.6]} 63...
Kb6 {[%clk 0:00:17]} 64. Rd4 {[%clk 0:00:13.2]} 64... Rh3+ {[%clk 0:00:17.3]}
65. Kc4 {[%clk 0:00:02.6]} 65... Rb3 {[%clk 0:00:17]} 66. Rd2 {[%clk 0:00:03.5]}
66... Ka6 {[%clk 0:00:14.4]} 67. Rh2 {[%clk 0:00:04.3]} 67... Kb6 {[%clk
0:00:14.5]} 68. Rh8 {[%clk 0:00:04.8]} 68... Kb7 {[%clk 0:00:15]} 69. Rh7+
{[%clk 0:00:04.8]} 69... Kb6 {[%clk 0:00:15.5]} 70. Rh6+ {[%clk 0:00:05.7]}
70... Ka5 {[%clk 0:00:14.1]} 71. Rh8 {[%clk 0:00:05.7]} 71... Ka6 {[%clk
0:00:11]} 72. Ra8+ {[%clk 0:00:05.9]} 72... Kb7 {[%clk 0:00:11.2]} 73. Rxa4
{[%clk 0:00:07.5]} 73... Rxb2 {[%clk 0:00:11.3]} 74. Rb4+ {[%clk 0:00:07.1]}
74... Rxb4+ {[%clk 0:00:12.3]} 75. axb4 {[%clk 0:00:08.6]} 75... Kb6 {[%clk
0:00:13.4]} 76. b5 {[%clk 0:00:10.1]} 76... Kb7 {[%clk 0:00:14.3]} 77. Kc5
{[%clk 0:00:11.7]} 77... Kc7 {[%clk 0:00:15.4]} 78. b6+ {[%clk 0:00:13.4]} 78...
Kb7 {[%clk 0:00:16.6]} 79. Kb5 {[%clk 0:00:15.1]} 79... Kb8 {[%clk 0:00:16.8]}
80. Kc6 {[%clk 0:00:16.7]} 80... Kc8 {[%clk 0:00:17.8]} 81. Kc5 {[%clk
0:00:18.4]} 81... Kb7 {[%clk 0:00:18.6]} 82. Kb5 {[%clk 0:00:20.3]} 82... Kb8
{[%clk 0:00:19.8]} 83. Ka5 {[%clk 0:00:22.2]} 83... Kb7 {[%clk 0:00:20.8]} 84.
Kb5 {[%clk 0:00:23.7]} 84... Kb8 {[%clk 0:00:21.9]} 85. Ka6 {[%clk 0:00:25.6]}
85... Ka8 {[%clk 0:00:22.7]} 86. Ka5 {[%clk 0:00:27.5]} 86... Kb7 {[%clk
0:00:23.8]} 87. Kb5 {[%clk 0:00:29.2]} 87... Kb8 {[%clk 0:00:25]} 88. Kc5 {[%clk
0:00:31.1]} 88... Kb7 {[%clk 0:00:26.1]} 89. Kb5 {[%clk 0:00:32.5]} 1/2-1/2

[Event "*** Titled Tuesday 3|2 Blitz"]
[Site "Chess.com"]
[Date "2016.05.03"]
[Round "5"]
[White "gmjoey1"]
[Black "Zurability"]
[Result "1-0"]
[WhiteElo "2529"]
[BlackElo "2415"]
[TimeControl "180+2"]
[EndTime "17:57:43 PDT"]
[Termination "gmjoey1 won by resignation"]

1. e4 {[%clk 0:03:01.9]} 1... d6 {[%clk 0:02:59.2]} 2. d4 {[%clk 0:03:02.4]}
2... Nf6 {[%clk 0:03:00.8]} 3. Nc3 {[%clk 0:03:03.5]} 3... e5 {[%clk 0:03:02.4]}
4. Nf3 {[%clk 0:03:03.4]} 4... Nbd7 {[%clk 0:03:03.6]} 5. Bc4 {[%clk 0:03:03.6]}
5... Be7 {[%clk 0:03:05.2]} 6. O-O {[%clk 0:03:03.8]} 6... O-O {[%clk
0:03:06.8]} 7. Re1 {[%clk 0:03:04.5]} 7... c6 {[%clk 0:03:08.5]} 8. a4 {[%clk
0:03:04.8]} 8... exd4 {[%clk 0:03:10.2]} 9. Nxd4 {[%clk 0:03:03.8]} 9... Ne5
{[%clk 0:03:12.1]} 10. Bb3 {[%clk 0:03:04.1]} 10... Re8 {[%clk 0:03:14]} 11. h3
{[%clk 0:03:01.3]} 11... Ng6 {[%clk 0:03:08.4]} 12. f4 {[%clk 0:03:00.7]} 12...
Bd7 {[%clk 0:03:06.4]} 13. Kh2 {[%clk 0:02:55]} 13... h6 {[%clk 0:02:38]} 14.
Qd3 {[%clk 0:02:54.1]} 14... Qa5 {[%clk 0:02:38]} 15. e5 {[%clk 0:02:50.2]}
15... Nd5 {[%clk 0:02:32.4]} 16. Nxd5 {[%clk 0:02:49.9]} 16... cxd5 {[%clk
0:02:33.4]} 17. e6 {[%clk 0:02:51.1]} 17... Bc6 {[%clk 0:02:32.1]} 18. Bd2
{[%clk 0:02:46.8]} 18... Qc7 {[%clk 0:02:31.1]} 19. exf7+ {[%clk 0:02:38.6]}
19... Kxf7 {[%clk 0:02:33]} 20. Ne6 {[%clk 0:02:37.3]} 20... Qc8 {[%clk
0:02:29.5]} 21. Bxd5 {[%clk 0:02:37.7]} 21... Bxd5 {[%clk 0:02:30.9]} 22. Qxd5
{[%clk 0:02:39]} 1-0

[Event "*** Titled Tuesday 3|2 Blitz"]
[Site "Chess.com"]
[Date "2016.05.03"]
[Round "5"]
[White "viktorskliarov"]
[Black "attack2mateU"]
[Result "0-1"]
[WhiteElo "2436"]
[BlackElo "2464"]
[TimeControl "180+2"]
[EndTime "17:57:52 PDT"]
[Termination "attack2mateU won by resignation"]

1. e4 {[%clk 0:03:01.9]} 1... c5 {[%clk 0:03:00]} 2. Nf3 {[%clk 0:03:02.8]} 2...
d6 {[%clk 0:03:01.4]} 3. d4 {[%clk 0:03:03.8]} 3... cxd4 {[%clk 0:03:03.3]} 4.
Qxd4 {[%clk 0:03:05.4]} 4... Nc6 {[%clk 0:03:03.8]} 5. Bb5 {[%clk 0:03:06.3]}
5... Bd7 {[%clk 0:03:05.5]} 6. Bxc6 {[%clk 0:03:07.4]} 6... Bxc6 {[%clk
0:03:07]} 7. Nc3 {[%clk 0:03:08.9]} 7... e5 {[%clk 0:03:06.8]} 8. Qd3 {[%clk
0:03:05.4]} 8... h6 {[%clk 0:03:06.3]} 9. b4 {[%clk 0:02:50.4]} 9... a6 {[%clk
0:03:03.6]} 10. a4 {[%clk 0:02:49.3]} 10... Nf6 {[%clk 0:03:04]} 11. Ba3 {[%clk
0:02:47.1]} 11... b5 {[%clk 0:03:01.7]} 12. a5 {[%clk 0:02:42]} 12... Be7 {[%clk
0:02:56.9]} 13. O-O {[%clk 0:02:34.2]} 13... O-O {[%clk 0:02:58]} 14. Rad1
{[%clk 0:02:27.5]} 14... Qc7 {[%clk 0:02:58.3]} 15. Qe2 {[%clk 0:02:19.3]} 15...
Rac8 {[%clk 0:02:32.4]} 16. Rd3 {[%clk 0:02:15]} 16... Qb7 {[%clk 0:02:31.5]}
17. Rfd1 {[%clk 0:02:13.9]} 17... Nxe4 {[%clk 0:02:29]} 18. Nd5 {[%clk
0:02:07.3]} 18... Bxd5 {[%clk 0:02:28.7]} 19. Rxd5 {[%clk 0:02:08]} 19... Nc3
{[%clk 0:02:30.4]} 0-1

[Event "*** Titled Tuesday 3|2 Blitz"]
[Site "Chess.com"]
[Date "2016.05.03"]
[Round "5"]
[White "Assasin14"]
[Black "GianmarcoVaR"]
[Result "0-1"]
[WhiteElo "2040"]
[BlackElo "2337"]
[TimeControl "180+2"]
[EndTime "17:58:40 PDT"]
[Termination "GianmarcoVaR won by resignation"]

1. e4 {[%clk 0:03:01.9]} 1... c6 {[%clk 0:02:58.1]} 2. d4 {[%clk 0:03:02.6]}
2... d5 {[%clk 0:03:00]} 3. Nd2 {[%clk 0:03:02.2]} 3... dxe4 {[%clk 0:03:01]} 4.
Nxe4 {[%clk 0:03:04.1]} 4... Bf5 {[%clk 0:03:02.4]} 5. Ng3 {[%clk 0:03:05.3]}
5... Bg6 {[%clk 0:03:03.8]} 6. h4 {[%clk 0:03:06.6]} 6... h6 {[%clk 0:03:05.3]}
7. h5 {[%clk 0:03:07.8]} 7... Bh7 {[%clk 0:03:06.3]} 8. Nf3 {[%clk 0:03:09.4]}
8... e6 {[%clk 0:03:06.6]} 9. Bd3 {[%clk 0:03:08.8]} 9... Bxd3 {[%clk
0:03:07.6]} 10. Qxd3 {[%clk 0:03:10.7]} 10... Nf6 {[%clk 0:03:09.3]} 11. Bd2
{[%clk 0:03:11.9]} 11... c5 {[%clk 0:03:10]} 12. O-O-O {[%clk 0:03:01.9]} 12...
Nc6 {[%clk 0:03:11.1]} 13. Qb5 {[%clk 0:02:49.7]} 13... Qb6 {[%clk 0:02:47.7]}
14. Qxb6 {[%clk 0:02:41.4]} 14... axb6 {[%clk 0:02:48.1]} 15. Kb1 {[%clk
0:02:42.9]} 15... cxd4 {[%clk 0:02:47.1]} 16. Bf4 {[%clk 0:02:42.2]} 16... Bc5
{[%clk 0:02:31.7]} 17. Ne2 {[%clk 0:02:38]} 17... Ng4 {[%clk 0:02:24.6]} 18. Bg3
{[%clk 0:02:33.2]} 18... O-O-O {[%clk 0:02:17.3]} 19. a3 {[%clk 0:02:30.5]}
19... d3 {[%clk 0:02:17.2]} 20. cxd3 {[%clk 0:02:26.7]} 20... Bxf2 {[%clk
0:02:11.6]} 21. Rh4 {[%clk 0:02:21.7]} 21... Ne3 {[%clk 0:02:12.3]} 22. Bxf2
{[%clk 0:02:15.2]} 22... Nxd1 {[%clk 0:02:13.3]} 23. Bxb6 {[%clk 0:02:17.1]}
23... Rxd3 {[%clk 0:02:13.8]} 24. Kc2 {[%clk 0:02:18.5]} 24... Rd5 {[%clk
0:02:08.9]} 25. Rh1 {[%clk 0:02:17.2]} 25... Nxb2 {[%clk 0:02:09.4]} 26. Kxb2
{[%clk 0:02:17]} 26... Rb5+ {[%clk 0:02:06.8]} 27. Kc2 {[%clk 0:02:15]} 27...
Rxb6 {[%clk 0:02:08.7]} 0-1

[Event "*** Titled Tuesday 3|2 Blitz"]
[Site "Chess.com"]
[Date "2016.05.03"]
[Round "5"]
[White "Zlatan56"]
[Black "GM_Huschenbeth"]
[Result "1-0"]
[WhiteElo "2600"]
[BlackElo "2474"]
[TimeControl "180+2"]
[EndTime "18:01:02 PDT"]
[Termination "Zlatan56 won by resignation"]

1. g3 {[%clk 0:03:01.9]} 1... g6 {[%clk 0:02:57.9]} 2. Bg2 {[%clk 0:03:02.4]}
2... Bg7 {[%clk 0:02:59.6]} 3. d4 {[%clk 0:03:02.3]} 3... d5 {[%clk 0:02:53.2]}
4. Nf3 {[%clk 0:03:02.3]} 4... Nf6 {[%clk 0:02:53.7]} 5. O-O {[%clk 0:03:03.8]}
5... c6 {[%clk 0:02:55.2]} 6. Nbd2 {[%clk 0:03:04.8]} 6... O-O {[%clk
0:02:55.9]} 7. b3 {[%clk 0:03:05.8]} 7... a5 {[%clk 0:02:49.8]} 8. c4 {[%clk
0:03:06.1]} 8... a4 {[%clk 0:02:49.3]} 9. Ba3 {[%clk 0:03:06.2]} 9... Nbd7
{[%clk 0:02:45]} 10. Qc2 {[%clk 0:03:03.4]} 10... Re8 {[%clk 0:02:45.2]} 11.
Rfd1 {[%clk 0:02:52.4]} 11... b6 {[%clk 0:02:35.3]} 12. cxd5 {[%clk 0:02:33.7]}
12... cxd5 {[%clk 0:02:37.2]} 13. Ne5 {[%clk 0:02:27.8]} 13... Bb7 {[%clk
0:02:29.5]} 14. Ndf3 {[%clk 0:02:21.9]} 14... Rc8 {[%clk 0:02:25.7]} 15. Qb2
{[%clk 0:02:22.2]} 15... Ne4 {[%clk 0:02:20.6]} 16. bxa4 {[%clk 0:02:15]} 16...
Nc3 {[%clk 0:02:12.9]} 17. Rdc1 {[%clk 0:02:14.8]} 17... Nxe5 {[%clk 0:01:50.7]}
18. Nxe5 {[%clk 0:02:15]} 18... Nxa4 {[%clk 0:01:32.1]} 19. Qb4 {[%clk
0:02:04.9]} 19... Bxe5 {[%clk 0:01:32.6]} 20. dxe5 {[%clk 0:02:01]} 20... Qd7
{[%clk 0:01:21]} 21. Rxc8 {[%clk 0:01:56.4]} 21... Bxc8 {[%clk 0:00:49.8]} 22.
Rd1 {[%clk 0:01:55.3]} 22... Bb7 {[%clk 0:00:39]} 23. e6 {[%clk 0:01:52.9]}
23... fxe6 {[%clk 0:00:36.8]} 24. Qd4 {[%clk 0:01:52.9]} 24... Rc8 {[%clk
0:00:25.8]} 25. Bh3 {[%clk 0:01:36.1]} 25... Rc4 {[%clk 0:00:26.2]} 26. Qxc4
{[%clk 0:01:35.6]} 26... Kf8 {[%clk 0:00:27.5]} 27. Qf4+ {[%clk 0:01:32.7]} 1-0

[Event "*** Titled Tuesday 3|2 Blitz"]
[Site "Chess.com"]
[Date "2016.05.03"]
[Round "5"]
[White "Dlugy"]
[Black "Hikaru"]
[Result "0-1"]
[WhiteElo "2594"]
[BlackElo "2839"]
[TimeControl "180+2"]
[EndTime "18:01:52 PDT"]
[Termination "Hikaru won by resignation"]

1. d4 {[%clk 0:03:01.9]} 1... e6 {[%clk 0:02:59.8]} 2. Bf4 {[%clk 0:03:02.2]}
2... Nf6 {[%clk 0:02:57.6]} 3. e3 {[%clk 0:03:03.3]} 3... d5 {[%clk 0:02:58.9]}
4. Nd2 {[%clk 0:03:03.4]} 4... c5 {[%clk 0:03:00.2]} 5. c3 {[%clk 0:03:04.3]}
5... Bd6 {[%clk 0:03:00.9]} 6. Bg3 {[%clk 0:03:03]} 6... Nc6 {[%clk 0:03:01.5]}
7. Ngf3 {[%clk 0:03:04]} 7... O-O {[%clk 0:03:03.1]} 8. Bb5 {[%clk 0:03:04.4]}
8... Ne7 {[%clk 0:03:02.7]} 9. Bd3 {[%clk 0:03:04.6]} 9... b6 {[%clk 0:02:58.1]}
10. Ne5 {[%clk 0:03:00.4]} 10... Bb7 {[%clk 0:02:56.1]} 11. O-O {[%clk
0:03:01.3]} 11... Qc7 {[%clk 0:02:45.9]} 12. Qe2 {[%clk 0:02:59.4]} 12... Nf5
{[%clk 0:02:40.2]} 13. Bf4 {[%clk 0:02:54.1]} 13... Ne7 {[%clk 0:02:33.4]} 14.
a4 {[%clk 0:02:33.3]} 14... a6 {[%clk 0:02:31.5]} 15. Bg3 {[%clk 0:02:32.3]}
15... Nf5 {[%clk 0:02:30.9]} 16. Bxf5 {[%clk 0:02:25.6]} 16... exf5 {[%clk
0:02:31.8]} 17. a5 {[%clk 0:02:25.7]} 17... b5 {[%clk 0:02:32.6]} 18. dxc5
{[%clk 0:02:26.8]} 18... Bxe5 {[%clk 0:02:33.3]} 19. Bxe5 {[%clk 0:02:11.5]}
19... Qxe5 {[%clk 0:02:35.2]} 20. Nf3 {[%clk 0:02:11.6]} 20... Qe7 {[%clk
0:02:33.8]} 21. b4 {[%clk 0:02:12.4]} 21... f4 {[%clk 0:02:31.5]} 22. Rfe1
{[%clk 0:02:12.1]} 22... fxe3 {[%clk 0:02:32.6]} 23. Qxe3 {[%clk 0:02:10.2]}
23... Qxe3 {[%clk 0:02:33.2]} 24. Rxe3 {[%clk 0:02:11.9]} 24... Rfe8 {[%clk
0:02:34.8]} 25. Rd3 {[%clk 0:02:13.1]} 25... Nd7 {[%clk 0:02:33.5]} 26. Nd4
{[%clk 0:02:12.7]} 26... Ne5 {[%clk 0:02:33.7]} 27. Rd2 {[%clk 0:02:12.9]} 27...
g6 {[%clk 0:02:33.9]} 28. Rad1 {[%clk 0:02:13]} 28... Nc6 {[%clk 0:02:34.5]} 29.
Nc2 {[%clk 0:02:10.7]} 29... Rad8 {[%clk 0:02:34.5]} 30. Kf1 {[%clk 0:02:05.2]}
30... d4 {[%clk 0:02:34.1]} 31. Nxd4 {[%clk 0:01:56.1]} 31... Nxd4 {[%clk
0:02:34.7]} 32. Rxd4 {[%clk 0:01:57.4]} 32... Rxd4 {[%clk 0:02:35.5]} 33. Rxd4
{[%clk 0:01:58.4]} 33... Kf8 {[%clk 0:02:35.4]} 34. Rd6 {[%clk 0:01:48.7]} 34...
Re6 {[%clk 0:02:35.7]} 35. Rd7 {[%clk 0:01:49]} 35... Bc6 {[%clk 0:02:34]} 36.
Ra7 {[%clk 0:01:42.1]} 36... Bd5 {[%clk 0:02:35.2]} 37. f3 {[%clk 0:01:43.4]}
37... g5 {[%clk 0:02:36.5]} 38. Kf2 {[%clk 0:01:44.1]} 38... h5 {[%clk
0:02:37.6]} 39. h3 {[%clk 0:01:32.6]} 39... h4 {[%clk 0:02:35.8]} 40. Rd7 {[%clk
0:01:33.4]} 40... Bc4 {[%clk 0:02:35.7]} 41. Rd4 {[%clk 0:01:27.4]} 41... Re2+
{[%clk 0:02:32.4]} 42. Kg1 {[%clk 0:01:28.4]} 42... Re1+ {[%clk 0:02:32.3]} 43.
Kf2 {[%clk 0:01:28.7]} 43... Re2+ {[%clk 0:02:31.5]} 44. Kg1 {[%clk 0:01:29.7]}
44... Rc2 {[%clk 0:02:33.1]} 45. Rd6 {[%clk 0:01:27.7]} 45... Rxc3 {[%clk
0:02:24.3]} 46. Rxa6 {[%clk 0:01:28.5]} 46... Ke7 {[%clk 0:02:25]} 47. Rb6
{[%clk 0:01:14]} 47... Rb3 {[%clk 0:02:24.6]} 48. a6 {[%clk 0:01:14.5]} 48...
Rxb4 {[%clk 0:02:22]} 49. c6 {[%clk 0:01:15.7]} 49... Kd6 {[%clk 0:02:15]} 50.
Rb8 {[%clk 0:00:49.2]} 50... Ra4 {[%clk 0:02:13.9]} 51. Rg8 {[%clk 0:00:50.5]}
51... Rxa6 {[%clk 0:02:11.6]} 52. Rxg5 {[%clk 0:00:52.1]} 52... Rxc6 {[%clk
0:02:12.2]} 0-1